Workbook

Sheet НХЛ Сезон 2013-2014
A1: Изменять и заполнять можно только на раскаршенные ячейки.
A2: РОЙ Одиноч | B2: РОЙ Экспреса | C2: Прибыль | D2: Количестов сыгранных экспресов | E2: Ср.коэф. | F2: Ср.коэф. | G2: Сумма ставок одиноч | H2: Сумма ставок двойника | I2: Кол.совпадений одиноч | J2: Кол.совпадений двоник. | K2: Сумма выигрыша | L2: Сумма выигрыша
A3: =((K3-G3)/G3)*100 ->  | B3: =((L3-H3)/H3)*100 -> 42.46629834 | C3: =(L3-H3)+(KF3-G3) -> 7686.4 | D3: =SUM(A5:A304) -> 19 | E3: =AVERAGE(E5:E241) -> 1.828818182 | F3: =AVERAGE(F5:F338) -> 0.4405973054 | G3: =SUM(G5:G82) -> 0 | H3: =SUM(H5:H80) -> 18100 | I3: =SUM(I5:I295) -> 25 | J3: =SUM(J5:J184) -> 9 | K3: =SUM(K5:K84) -> 0 | L3: =SUM(L5:L71) -> 25786.4
B4: Дата | C4: Наименование команд | D4: Ставка | E4: Коэф. Одиноный | F4: Коэф экспреса | G4: Сумма ставки | H4: Сумма ставки экспреса | I4: Совпадение | J4: Совпадение экспреса | K4: Выигрыш\проигрышь одиноч | L4: Выигрыш\проигрышь экспреса
A5: 1 | B5: 2013-12-11 | C5: Нью-Джерси Девилз @ Коламбус Блю Джекетс | D5: Меньше 5.5 | E5: 1.5 | F5: =E5*E6 -> 2.19 | H5: 1000 | I5: 0 | J5: =IF(I5+I6=2,1,0) -> 0 | K5: =E5*G5*I5 -> 0 | L5: =F5*H5*J5 -> 0
B6: 2013-12-11 | C6: Лос-Анджелес Кингз @ Монреаль Канадиенс | D6: Меньше 5.5 | E6: 1.46 | I6: 0 | K6: =E6*G6*I6 -> 0
A7: 1 | B7: 2013-12-11 | C7: Сент-Луис Блюз @ Виннипег Джетс | D7: Меньше 5.5 | E7: 1.87 | F7: =E7*E8 -> 3.9644 | H7: 1000 | I7: 1 | J7: =IF(I7+I8=2,1,0) -> 0 | K7: 0 | L7: =F7*H7*J7 -> 0
B8: 2013-12-11 | C8: Финикс Койотс @ Колорадо Эвеланш | D8: Больше 5.5 | E8: 2.12 | I8: 0 | K8: 0
A9: 1 | B9: 2013-12-11 | C9: Оттава Сенаторз @ Баффало Сейбрз | D9: Меньше 5.5 | E9: 1.7 | F9: =E9*E10 -> 3.1161 | H9: 1000 | I9: 1 | J9: =IF(I9+I10=2,1,0) -> 0 | K9: 0 | L9: =F9*H9*J9 -> 0
B10: 2013-12-11 | C10: Тампа Бэй Лайтнинг @ Вашингтон Кэпиталз | D10: Меньше 5.5 | E10: 1.833 | I10: 0 | K10: 0
A11: 1 | B11: 2013-12-11 | C11: Нэшвилл Предаторз @ Нью-Йорк Рейнджерс | D11: Меньше 5.5 | E11: 1.55 | F11: =E11*E12 -> 3.286 | H11: 1000 | I11: 1 | J11: =IF(I11+I12=2,1,0) -> 1 | K11: 0 | L11: =F11*H11*J11 -> 3286
B12: 2013-12-11 | C12: Нью-Йорк Айлендерс @ Сан-Хосе Шаркс | D12: Меньше 5.5 | E12: 2.12 | I12: 1 | K12: 0
A13: 1 | B13: 2013-12-11 | C13: Чикаго Блэкхокс @ Даллас Старз | D13: Больше 5.5 | E13: 1.86 | F13: =E13*E14 -> 3.1992 | H13: 1000 | I13: 1 | J13: =IF(I13+I14=2,1,0) -> 1 | K13: 0 | L13: =F13*H13*J13 -> 3199.2
B14: 2013-12-11 | C14: Бостон Брюинз @ Калгари Флеймз | D14: Меньше 5.5 | E14: 1.72 | I14: 1 | K14: 0
A15: 1 | B15: 2013-12-12 | C15: Филадельфия Флайерз @ Чикаго Блэкхокс | D15: Больше 5.5 | E15: 2.04 | F15: =E15*E16 -> 3.2946 | H15: 1000 | I15: 1 | J15: =IF(I15+I16=2,1,0) -> 1 | K15: 0 | L15: =F15*H15*J15 -> 3294.6
B16: 2013-12-12 | C16: Миннесота Уайлд @ Анахайм Дакс | D16: Меньше 5.5 | E16: 1.615 | I16: 1 | K16: 0
A17: 1 | B17: 2013-12-12 | C17: Лос-Анджелес Кингз @ Торонто Мэйпл Лифс | D17: Меньше 5.5 | E17: 1.615 | F17: =E17*E18 -> 3.3592 | H17: 1000 | I17: 1 | J17: =IF(I17+I18=2,1,0) -> 0 | K17: 0 | L17: =F17*H17*J17 -> 0
B18: 2013-12-12 | C18: Нью-Йорк Айлендерс @ Финикс Койотс | D18: Меньше 5.5 | E18: 2.08 | I18: 0 | K18: 0
A19: 1 | B19: 2013-12-12 | C19: Монреаль Канадиенс @ Филадельфия Флайерз | D19: Больше 5.5 | E19: 2.56 | F19: 4.8384 | H19: 1000 | I19: 0 | J19: =IF(I19+I20=2,1,0) -> 0 | K19: 0 | L19: =F19*H19*J19 -> 0
B20: 2013-12-12 | C20: Торонто Мэйпл Лифс @ Сент-Луис Блюз | D20: Меньше 5.5 | E20: 1.89 | I20: 0 | K20: 0
A21: 1 | B21: 2013-12-12 | C21: Коламбус Блю Джекетс @ Нью-Йорк Рейнджерс | D21: Меньше 5.5 | E21: 1.6 | F21: 2.88 | H21: 1000 | I21: 0 | J21: =IF(I21+I22=2,1,0) -> 0 | K21: 0 | L21: =F21*H21*J21 -> 0
B22: 2013-12-12 | C22: Даллас Старз @ Нэшвилл Предаторз | D22: Меньше 5.5 | E22: 1.8 | I22: 1 | K22: 0
A23: 1 | B23: 2013-12-12 | C23: Колорадо Эвеланш @ Виннипег Джетс | D23: Меньше 5.5 | E23: 1.75 | F23: 3.2725 | H23: 1000 | I23: 0 | J23: =IF(I23+I24=2,1,0) -> 0 | K23: 0 | L23: =F23*H23*J23 -> 0
B24: 2013-12-12 | C24: Каролина Харрикейнз @ Калгари Флеймз | D24: Меньше 5.5 | E24: 1.87 | I24: 1 | K24: 0
A25: 1 | B25: 2013-12-13 | C25: Баффало Сейбрз @ Оттава Сенаторз | D25: Меньше 5.5 | E25: 1.71 | F25: 2.7873 | H25: 1000 | I25: 1 | J25: =IF(I25+I26=2,1,0) -> 1 | K25: 0 | L25: =F25*H25*J25 -> 2787.3
B26: 2013-12-13 | C26: Миннесота Уайлд @ Сан-Хосе Шаркс | D26: Меньше 5.5 | E26: 1.63 | I26: 1 | K26: 0
A27: 1 | B27: 2013-12-13 | C27: Детройт Ред Уингз @ Тампа Бэй Лайтнинг | D27: Меньше 5.5 | E27: 1.75 | F27: =E27*E28 -> 3.99 | H27: 100 | I27: 1 | J27: =IF(I27+I28=2,1,0) -> 1 | K27: 0 | L27: =F27*H27*J27 -> 399
B28: 2013-12-13 | C28: Бостон Брюинз @ Эдмонтон Ойлерз | D28: Больше 5.5 | E28: 2.28 | I28: 1 | K28: 0
A29: 1 | B29: 2013-12-14 | C29: Нью-Джерси Девилз @ Питтсбург Пингвинз | D29: Меньше 5.5 | E29: 1.63 | F29: 3.0807 | H29: 1000 | I29: 1 | J29: =IF(I29+I30=2,1,0) -> 1 | K29: 0 | L29: =F29*H29*J29 -> 3080.7
B30: 2013-12-14 | C30: Эдмонтон Ойлерз @ Ванкувер Кэнакс | D30: Меньше 5.5 | E30: 1.89 | I30: 1 | K30: 0
A31: 1 | B31: 2013-12-14 | C31: Вашингтон Кэпиталз @ Флорида Пантерз | D31: Больше 5.5 | E31: 2.02 | F31: 3.333 | H31: 1000 | I31: 0 | J31: =IF(I31+I32=2,1,0) -> 0 | K31: 0 | L31: =F31*H31*J31 -> 0
B32: 2013-12-14 | C32: Лос-Анджелес Кингз @ Оттава Сенаторз | D32: Меньше 5.5 | E32: 1.65 | I32: 0 | K32: 0
A33: 1 | B33: 2013-12-15 | C33: Калгари Флеймз @ Баффало Сейбрз | D33: Меньше 5.5 | E33: 1.72 | F33: 3.4056 | H33: 1000 | I33: 1 | J33: =IF(I33+I34=2,1,0) -> 0 | K33: 0 | L33: =F33*H33*J33 -> 0
B34: 2013-12-15 | C34: Даллас Старз @ Виннипег Джетс | D34: Меньше 5.5 | E34: 1.98 | I34: 0 | K34: 0
A35: 1 | B35: 2013-12-15 | C35: Чикаго Блэкхокс @ Торонто Мэйпл Лифс | D35: Больше 5.5 | E35: 1.89 | F35: 3.591 | H35: 1000 | I35: 1 | J35: =IF(I35+I36=2,1,0) -> 1 | K35: 0 | L35: =F35*H35*J35 -> 3591
B36: 2013-12-15 | C36: Каролина Харрикейнз @ Финикс Койотс | D36: Меньше 5.5 | E36: 1.9 | I36: 1 | K36: 0
A37: 1 | B37: 2013-12-15 | C37: Монреаль Канадиенс @ Нью-Йорк Айлендерс | D37: Меньше 5.5 | E37: 1.75 | F37: 3.325 | H37: 1000 | I37: 1 | J37: =IF(I37+I38=2,1,0) -> 1 | K37: 0 | L37: =F37*H37*J37 -> 3325
B38: 2013-12-15 | C38: Сан-Хосе Шаркс @ Нэшвилл Предаторз | D38: Меньше 5.5 | E38: 1.9 | I38: 1 | K38: 0
A39: 1 | B39: 2013-12-15 | C39: Сент-Луис Блюз @ Коламбус Блю Джекетс | D39: Меньше 5.5 | E39: 1.81 | F39: 2.92315 | H39: 1000 | I39: 0 | J39: =IF(I39+I40=2,1,0) -> 0 | K39: 0 | L39: =F39*H39*J39 -> 0
B40: 2013-12-15 | C40: Тампа Бэй Лайтнинг @ Нью-Джерси Девилз | D40: Меньше 5.5 | E40: 1.615 | I40: 1 | K40: 0
A41: 1 | B41: 2013-12-15 | C41: Питтсбург Пингвинз @ Детройт Ред Уингз | D41: Меньше 5.5 | E41: 1.81 | F41: 2.8236 | H41: 1000 | I41: 1 | J41: 1 | K41: 0 | L41: =F41*H41*J41 -> 2823.6
B42: 2013-12-15 | C42: Миннесота Уайлд @ Колорадо Эвеланш | D42: Меньше 5.5 | E42: 1.56 | I42: 1 | K42: 0
B43: 2013-12-16 | C43: Филадельфия Флайерз @ Вашингтон Кэпиталз | D43: Больше 5.5 | E43: 2.24 | F43: 3.808 | H43: 0 | J43: 0 | K43: 0 | L43: =F43*H43*J43 -> 0
B44: 2013-12-16 | C44: Тампа Бэй Лайтнинг @ Детройт Ред Уингз | D44: Меньше 5.5 | E44: 1.7 | K44: 0
B45: 2013-12-16 | C45: Лос-Анджелес Кингз @ Чикаго Блэкхокс | D45: Больше 5.5 | E45: 2.2 | F45: 4.488 | H45: 0 | J45: 0 | K45: 0 | L45: =F45*H45*J45 -> 0
B46: 2013-12-16 | C46: Эдмонтон Ойлерз @ Анахайм Дакс | D46: Меньше 5.5 | E46: 2.04 | K46: 0
B47: 2013-12-16 | C47: Флорида Пантерз @ Монреаль Канадиенс | D47: Меньше 5.5 | E47: 1.64 | F47: 2.624 | H47: 0 | J47: 0 | K47: 0 | L47: =F47*H47*J47 -> 0
B48: 2013-12-16 | C48: Калгари Флеймз @ Нью-Йорк Рейнджерс | D48: Меньше 5.5 | E48: 1.6 | K48: 0
F49: 0 | J49: 0 | K49: 0 | L49: =F49*H49*J49 -> 0
K50: 0
F51: 0 | J51: 0 | K51: 0 | L51: =F51*H51*J51 -> 0
K52: 0
F53: 0 | J53: 0 | K53: 0 | L53: =F53*H53*J53 -> 0
K54: 0
F55: 0 | J55: 0 | K55: 0 | L55: =F55*H55*J55 -> 0
K56: 0
F57: 0 | J57: 0 | K57: 0 | L57: =F57*H57*J57 -> 0
K58: 0
F59: 0 | J59: 0 | K59: 0 | L59: =F59*H59*J59 -> 0
K60: 0
F61: 0 | J61: 0 | K61: 0 | L61: =F61*H61*J61 -> 0
K62: 0
F63: 0 | J63: 0 | K63: 0 | L63: =F63*H63*J63 -> 0
K64: 0
F65: 0 | J65: 0 | K65: 0 | L65: =F65*H65*J65 -> 0
K66: 0
F67: 0 | J67: 0 | K67: 0 | L67: =F67*H67*J67 -> 0
K68: 0
F69: 0 | J69: 0 | K69: 0 | L69: =F69*H69*J69 -> 0
K70: =E70*G70*I70 -> 0
F71: 0 | J71: 0 | K71: 0 | L71: =F71*H71*J71 -> 0
K72: 0
F73: 0 | J73: 0 | K73: 0 | L73: =F73*H73*J73 -> 0
K74: 0
F75: 0 | J75: 0 | K75: 0 | L75: =F75*H75*J75 -> 0
K76: 0
F77: 0 | J77: 0 | K77: 0 | L77: =F77*H77*J77 -> 0
K78: 0
F79: 0 | J79: 0 | K79: 0 | L79: =F79*H79*J79 -> 0
K80: 0
F81: =E81*E82 -> 0 | J81: 0 | K81: 0 | L81: =F81*H81*J81 -> 0
K82: 0
F83: 0 | J83: 0 | K83: 0 | L83: =F83*H83*J83 -> 0
K84: 0
F85: 0 | J85: 0 | K85: 0 | L85: =F85*H85*J85 -> 0
K86: 0
F87: 0 | J87: 0 | K87: 0 | L87: =F87*H87*J87 -> 0
K88: 0
F89: 0 | J89: 0 | K89: 0 | L89: =F89*H89*J89 -> 0
K90: 0
F91: 0 | J91: 0 | K91: 0 | L91: =F91*H91*J91 -> 0
K92: 0
F93: 0 | J93: 0 | K93: 0 | L93: =F93*H93*J93 -> 0
K94: 0
F95: 0 | J95: 0 | K95: 0 | L95: =F95*H95*J95 -> 0
K96: 0
F97: 0 | J97: 0 | K97: 0 | L97: =F97*H97*J97 -> 0
K98: 0
F99: 0 | J99: 0 | K99: 0 | L99: =F99*H99*J99 -> 0
K100: 0
F101: 0 | J101: 0 | K101: 0 | L101: =F101*H101*J101 -> 0
K102: 0
F103: 0 | J103: =IF(I103+I104=2,1,0) -> 0 | K103: 0 | L103: =F103*H103*J103 -> 0
K104: 0
F105: 0 | J105: 0 | K105: 0 | L105: =F105*H105*J105 -> 0
K106: 0
F107: 0 | J107: 0 | K107: 0 | L107: =F107*H107*J107 -> 0
K108: 0
F109: 0 | J109: 0 | K109: 0 | L109: =F109*H109*J109 -> 0
K110: 0
F111: 0 | J111: 0 | K111: 0 | L111: =F111*H111*J111 -> 0
K112: 0
F113: 0 | J113: 0 | K113: 0 | L113: =F113*H113*J113 -> 0
K114: 0
F115: 0 | K115: 0 | L115: =F115*H115*J115 -> 0
K116: 0
F117: 0 | K117: 0 | L117: =F117*H117*J117 -> 0
K118: 0
F119: 0 | K119: 0 | L119: =F119*H119*J119 -> 0
K120: 0
F121: 0 | K121: 0 | L121: =F121*H121*J121 -> 0
K122: 0
F123: 0 | K123: 0 | L123: =F123*H123*J123 -> 0
K124: 0
F125: 0 | K125: 0 | L125: =F125*H125*J125 -> 0
K126: 0
F127: 0 | K127: 0 | L127: =F127*H127*J127 -> 0
K128: 0
F129: 0 | K129: 0 | L129: =F129*H129*J129 -> 0
K130: 0
F131: 0 | K131: 0 | L131: =F131*H131*J131 -> 0
K132: 0
F133: 0 | K133: 0 | L133: =F133*H133*J133 -> 0
K134: =E134*G134*I134 -> 0
F135: 0 | K135: 0 | L135: =F135*H135*J135 -> 0
K136: 0
F137: 0 | K137: 0 | L137: =F137*H137*J137 -> 0
K138: 0
F139: 0 | K139: 0 | L139: =F139*H139*J139 -> 0
K140: 0
F141: 0 | K141: 0 | L141: =F141*H141*J141 -> 0
K142: 0
F143: 0 | K143: 0 | L143: =F143*H143*J143 -> 0
K144: 0
F145: =E145*E146 -> 0 | K145: 0 | L145: =F145*H145*J145 -> 0
K146: 0
F147: 0 | K147: 0 | L147: =F147*H147*J147 -> 0
K148: 0
F149: 0 | K149: 0 | L149: =F149*H149*J149 -> 0
K150: 0
F151: 0 | K151: 0 | L151: =F151*H151*J151 -> 0
K152: 0
F153: 0 | K153: 0 | L153: =F153*H153*J153 -> 0
K154: 0
F155: 0 | K155: 0 | L155: =F155*H155*J155 -> 0
K156: 0
F157: 0 | K157: 0 | L157: =F157*H157*J157 -> 0
K158: 0
F159: 0 | K159: 0 | L159: =F159*H159*J159 -> 0
K160: 0
F161: 0 | K161: 0 | L161: =F161*H161*J161 -> 0
K162: 0
F163: 0 | K163: 0 | L163: =F163*H163*J163 -> 0
K164: 0
F165: 0 | K165: 0 | L165: =F165*H165*J165 -> 0
K166: 0
F167: 0 | K167: 0 | L167: =F167*H167*J167 -> 0
K168: 0
F169: 0 | K169: 0 | L169: =F169*H169*J169 -> 0
K170: 0
F171: 0 | K171: 0 | L171: =F171*H171*J171 -> 0
K172: 0
F173: 0 | K173: 0 | L173: =F173*H173*J173 -> 0
K174: 0
F175: 0 | K175: 0 | L175: =F175*H175*J175 -> 0
K176: 0
F177: 0 | K177: 0 | L177: =F177*H177*J177 -> 0
K178: 0
F179: 0 | K179: 0 | L179: =F179*H179*J179 -> 0
K180: 0
F181: 0 | K181: 0 | L181: =F181*H181*J181 -> 0
K182: 0
F183: 0 | K183: 0 | L183: =F183*H183*J183 -> 0
K184: 0
F185: 0 | K185: 0 | L185: =F185*H185*J185 -> 0
K186: 0
F187: 0 | K187: 0 | L187: =F187*H187*J187 -> 0
K188: 0
F189: 0 | K189: 0 | L189: =F189*H189*J189 -> 0
K190: 0
F191: 0 | K191: 0 | L191: =F191*H191*J191 -> 0
K192: 0
F193: 0 | K193: 0 | L193: =F193*H193*J193 -> 0
K194: 0
F195: 0 | K195: 0 | L195: =F195*H195*J195 -> 0
K196: 0
F197: 0 | K197: 0 | L197: =F197*H197*J197 -> 0
K198: =E198*G198*I198 -> 0
F199: 0 | K199: 0 | L199: =F199*H199*J199 -> 0
K200: 0
... 220 more rows
